fUSD/lending_fUSD_20250811
["ID","MTS","AMOUNT","RATE_DAILY","PERIOD"]
[378612996,1754926248253,-480.83976548,0.00016438,2]
[378613026,1754926248543,-316.91023452,0.00016438,2]
[378613028,1754926248553,-1283.22933475,0.00016438,2]
[378613030,1754926248566,-457.33066525,0.00016438,2]
[378613032,1754926248576,-366.01933475,0.00016438,2]
[378613044,1754926248687,-33.98066525,0.00016438,2]
[378613046,1754926248698,-1587.16,0.00016438,2]
[378613048,1754926248709,-528.96,0.00016438,2]
[378613050,1754926248719,-561.49,0.00016438,2]
[378613052,1754926248729,-1461.17,0.00016438,2]
[378613054,1754926248740,-400.0,0.00016438,2]
[378613056,1754926248749,-151.0,0.00016438,2]
[378613058,1754926248759,-151.0,0.00016438,2]
[378613060,1754926248769,-151.0,0.00016438,2]
[378613062,1754926248779,-151.0,0.00016438,2]
[378613064,1754926248788,-400.0,0.00016438,2]
[378613066,1754926248798,-461.11513622,0.00016438,2]
[378613067,1754926248807,-157.590856,0.00016438,2]
[378613069,1754926248816,-400.0,0.00016438,2]
[378613071,1754926248825,-400.0,0.00016438,2]
[378613073,1754926248835,-151.0,0.00016438,2]
[378613075,1754926248844,-917.88,0.00016438,2]
[378613077,1754926248854,-400.0,0.00016438,2]
[378613079,1754926248864,-151.0,0.00016438,2]
[378613081,1754926248873,-1398.44,0.00016438,2]
[378613083,1754926248883,-151.0,0.00016438,2]
[378613085,1754926248892,-151.0,0.00016438,2]
[378613087,1754926248902,-400.0,0.00016438,2]
[378613089,1754926248911,-979.64,0.00016438,2]
[378613090,1754926248920,-1946.77,0.00016438,2]
[378613092,1754926248929,-178.20647997,0.00016438,2]
[378613094,1754926248939,-1080.14,0.00016438,2]
[378613096,1754926248948,-326.27943518,0.00016438,2]
[378613098,1754926248958,-400.0,0.00016438,2]
[378613100,1754926248972,-3328.53,0.00016438,2]
[378613102,1754926248982,-158.164585,0.00016438,2]
[378613104,1754926248992,-464.12,0.00016438,2]
[378613106,1754926249001,-400.0,0.00016438,2]
[378613108,1754926249011,-222.07584833,0.00016438,2]
[378613110,1754926249022,-400.0,0.00016438,2]
[378613112,1754926249032,-400.0,0.00016438,2]
[378613114,1754926249042,-1592.19,0.00016438,2]
[378613116,1754926249052,-2696.01,0.00016438,2]
[378613118,1754926249062,-2646.17754979,0.00016438,2]
[378613120,1754926249075,-893.53245021,0.00016438,2]
[378613122,1754926249087,-656.25104871,0.00016438,2]
[378613124,1754926249100,-418.680849,0.00016438,2]
[378615295,1754926290973,213.0,0.00016,2]
[378615297,1754926295468,154.89,0.00015803,2]
[378615300,1754926306232,515.0,0.000154,2]
[378615309,1754926344775,213.25,0.00015612,2]
[378615329,1754926362623,150.0,0.00015962,2]
[378615330,1754926384106,214.156,0.00016,2]
[378615331,1754926398989,591.41058372,0.00015343,2]
[378615332,1754926399013,27.88941628,0.00015343,2]
[378615347,1754926425775,508.0,0.00015462,2]
[378615350,1754926475148,-171.99202807,0.00016048,2]
[378615351,1754926565861,266.0,0.000158,2]
[378615352,1754926598452,250.0,0.00015329,2]
[378615353,1754926599582,191.45517759,0.00015329,2]
[378615354,1754926599605,808.54482241,0.00015329,2]
[378615355,1754926617074,167.15,0.00015329,2]
[378615356,1754926644582,181.0,9.9e-05,2]
[378615357,1754926644927,177.0,0.0001108,2]
[378615358,1754926645363,174.0,0.0001227,2]
[378615359,1754926645673,170.0,0.0001345,2]
[378615360,1754926646083,166.0,0.0001463,2]
[378615361,1754926646459,326.0,0.0001582,2]
[378615362,1754926654248,1824.39580322,0.00015948,2]
[378615363,1754926785549,508.0,0.00015498,2]
[378615365,1754926793608,337.9,0.00013699,2]
[378615367,1754926856824,167.55,0.00015507,2]
[378615368,1754926879974,279.2,0.00015314,2]
[378615370,1754926914844,200.0,0.00015314,2]
[378615371,1754926923579,595.76,0.00015314,2]
[378615374,1754926970201,7865.60995809,0.0001531,2]
[378615375,1754926970432,15000.0,0.0001531,2]
[378615376,1754926970456,1034.39004191,0.0001531,2]
[378615378,1754927046477,9995.58571171,0.00015,2]
[378615380,1754927069688,200.46,0.00015319,2]
[378615382,1754927146161,508.0,0.00015557,2]
[378615383,1754927176190,157.0,8.9e-05,2]
[378615384,1754927176609,154.0,0.0001008,2]
[378615385,1754927176988,151.0,0.0001127,2]
[378615386,1754927177419,150.0,0.0001245,2]
[378615387,1754927177896,150.0,0.0001363,2]
[378615388,1754927178300,284.0,0.0001482,2]
[378615389,1754927178832,278.0,0.00016,2]
[378615391,1754927235425,1100.0,0.000159,5]
[378615392,1754927236017,170.0,0.00015312,7]
[378615396,1754927386495,170.6,0.00015311,2]
[378615402,1754927432314,-182.42956441,0.00016035,2]
[378615403,1754927432324,-203.36902774,0.00016035,2]
[378615404,1754927432334,-192.0,0.00016035,2]
[378615405,1754927432344,-300.0,0.00016035,2]
[378615406,1754927432353,-214.42561211,0.00016035,2]
[378615407,1754927432364,-985.57438789,0.00016035,2]
[378615408,1754927432374,-300.0,0.00016035,2]
[378615409,1754927432384,-138.82364816,0.00016036,5]
[378615410,1754927432456,-2679.60175179,0.00016036,5]
[378615438,1754927437641,-60340.0647472,0.00016036,5]
[378615439,1754927438099,-2167.29,0.00016036,5]
[378615440,1754927438193,-268.1436521,0.00016036,5]
[378615705,1754927441090,-38.79050842,0.00016036,5]
[378615765,1754927441681,-72877.99748975,0.00016036,5]
[378615766,1754927441690,-5888.0,0.00016036,2]
[378615767,1754927441700,-153.16123984,0.00016048,2]
[378615768,1754927441713,-170.6,0.00016076,2]
[378615769,1754927441722,-5888.0,0.00016114,2]
[378615770,1754927441734,-263.28517344,0.00016139,2]
[378615772,1754927441743,-346.92554585,0.00016139,2]
[378615774,1754927441754,-600.0,0.00016139,2]
[378615776,1754927441763,-160.0,0.00016139,2]
[378615778,1754927441773,-1438.09495884,0.00016139,2]
[378615780,1754927441783,-2183.31810187,0.00016139,2]
[378615782,1754927441793,-231.28369723,0.00016139,2]
[378615784,1754927441802,-150.0,0.0001615,2]
[378615786,1754927441811,-150.0,0.00016151,2]
[378615788,1754927441821,-150.0,0.0001617,2]
[378615790,1754927441830,-5888.0,0.00016178,2]
[378615792,1754927441839,-1000.0,0.00016183,2]
[378615794,1754927441849,-150.0,0.00016183,2]
[378615796,1754927441858,-150.0,0.00016189,2]
[378615798,1754927441868,-2264.10087164,0.00016194,2]
[378615800,1754927441877,-150.0,0.00016216,2]
[378615802,1754927441886,-150.0,0.00016221,2]
[378615804,1754927441896,-1000.0,0.00016238,2]
[378615806,1754927441905,-150.0,0.00016241,2]
[378615808,1754927441915,-150.0,0.00016245,2]
[378615810,1754927441924,-2347.87260389,0.00016249,2]
[378615812,1754927441933,-150.0,0.00016261,2]
[378615814,1754927441943,-609.85862808,0.00016268,2]
[378615816,1754927441952,-520.74052852,0.0001627,2]
[378615818,1754927441962,-461.32368,0.0001627,2]
[378615820,1754927441971,-150.0,0.00016271,2]
[378615822,1754927441982,-1000.0,0.00016272,2]
[378615824,1754927441991,-150.0,0.00016274,2]
[378615826,1754927442001,-150.0,0.00016279,2]
[378615828,1754927442010,-173.009,0.00016281,2]
[378615830,1754927442021,-2100.031,0.00016281,2]
[378615832,1754927442030,-167.55,0.00016282,2]
[378615834,1754927442039,-150.0,0.00016283,2]
[378615836,1754927442049,-150.0,0.00016287,2]
[378615838,1754927442058,-5888.0,0.00016292,2]
[378615840,1754927442067,-2434.74389024,0.00016304,2]
[378615842,1754927442076,-600.0,0.00016306,2]
[378615844,1754927442086,-600.0,0.00016306,2]
[378615846,1754927442096,-200.0,0.00016307,2]
[378615848,1754927442105,-150.0,0.00016327,2]
[378615850,1754927442115,-3935.6080703,0.00016338,2]
[378615852,1754927442124,-858.4220358,0.00016338,2]
[378615854,1754927442134,-1000.0,0.00016344,2]
[378615856,1754927442143,-150.0,0.00016345,2]
[378615858,1754927442152,-150.0,0.00016354,2]
[378615860,1754927442162,-150.0,0.00016359,2]
[378615862,1754927442171,-2524.82941417,0.00016359,2]
[378615864,1754927442181,-150.0,0.00016371,2]
[378615866,1754927442190,-150.0,0.00016372,2]
[378615868,1754927442199,-150.0,0.00016376,2]
[378615870,1754927442209,-1000.0,0.00016388,2]
[378615872,1754927442218,-1000.0,0.0001639,2]
[378615874,1754927442227,-1000.0,0.00016391,2]
[378615876,1754927442238,-150.0,0.00016393,2]
[378615877,1754927442247,-1000.0,0.00016397,2]
[378615879,1754927442256,-461.32368,0.000164,2]
[378615881,1754927442265,-150.0,0.000164,2]
[378615883,1754927442275,-150.0,0.00016408,2]
[378615885,1754927442283,-160.78926702,0.00016409,2]
[378615887,1754927442292,-5888.0,0.00016412,2]
[378615889,1754927442302,-2618.2481025,0.00016414,2]
[378615891,1754927442311,-150.0,0.00016416,2]
[378615893,1754927442320,-154.06404217,0.0001642,2]
[378615895,1754927442330,-167.15,0.00016424,2]
[378615897,1754927442339,-3710.9477744,0.00016427,2]
[378615899,1754927442348,-151.0,0.00016438,2]
[378615901,1754927442358,-151.0,0.00016438,2]
[378615903,1754927442367,-151.0,0.00016438,2]
[378615905,1754927442377,-151.0,0.00016438,2]
[378615907,1754927442387,-383.609605,0.00016438,2]
[378615909,1754927442396,-383.609605,0.00016438,2]
[378615911,1754927442406,-383.609605,0.00016438,2]
[378615913,1754927442416,-383.609605,0.00016438,2]
[378615915,1754927442425,-383.609605,0.00016438,2]
[378615917,1754927442435,-383.609605,0.00016438,2]
[378615919,1754927442449,-563.505899,0.00016438,2]
[378615921,1754927442459,-563.505899,0.00016438,2]
[378615923,1754927442468,-151.0,0.00016438,2]
[378615925,1754927442477,-271.97816,0.00016438,2]
[378615927,1754927442488,-151.0,0.00016438,2]
[378615929,1754927442498,-151.0,0.00016438,2]
[378615931,1754927442507,-151.0,0.00016438,2]
[378615933,1754927442517,-151.0,0.00016438,2]
[378615935,1754927442527,-151.0,0.00016438,2]
[378615937,1754927442536,-151.0,0.00016438,2]
[378615939,1754927442546,-151.0,0.00016438,2]
[378615941,1754927442556,-151.0,0.00016438,2]
[378615943,1754927442565,-229.104607,0.00016438,2]
[378615945,1754927442574,-151.0,0.00016438,2]
[378615947,1754927442584,-151.0,0.00016438,2]
[378615949,1754927442593,-151.0,0.00016438,2]
[378615951,1754927442603,-151.0,0.00016438,2]
[378615953,1754927442612,-151.0,0.00016438,2]
[378615955,1754927442621,-151.0,0.00016438,2]
[378615957,1754927442631,-151.0,0.00016438,2]
[378615962,1754927442641,-151.0,0.00016438,2]
[378615964,1754927442652,-226.158152,0.00016438,2]
[378615966,1754927442661,-1028.893763,0.00016438,2]
[378615968,1754927442670,-1028.893763,0.00016438,2]
[378615970,1754927442679,-1028.893763,0.00016438,2]
[378615972,1754927442688,-1028.893763,0.00016438,2]
[378615975,1754927442700,-489.35633877,0.00016438,2]
[378615978,1754927442718,-539.53742423,0.00016438,2]
[378615980,1754927442729,-893.04843725,0.00016438,2]
[378615983,1754927442743,-135.84532575,0.00016438,2]
[378615985,1754927442752,-311.96332405,0.00016438,2]
[378615991,1754927442801,-31.17934895,0.00016438,2]
[378615993,1754927442811,-343.142673,0.00016438,2]
[378615995,1754927442820,-25.56986393,0.00016438,2]
[378615997,1754927442831,-317.57280907,0.00016438,2]
[378615999,1754927442840,-284.02269063,0.00016438,2]
[378616001,1754927442852,-59.11998237,0.00016438,2]
[378616003,1754927442862,-343.142673,0.00016438,2]
[378616005,1754927442873,-343.142673,0.00016438,2]
[378616007,1754927442883,-392.763289,0.00016438,2]
[378616009,1754927442892,-212.0460238,0.00016438,2]
[378616011,1754927442904,-180.7172652,0.00016438,2]
[378616013,1754927442914,-336.2827348,0.00016438,2]
[378616018,1754927442948,-56.4805542,0.00016438,2]
[378616020,1754927442958,-392.763289,0.00016438,2]
[378616022,1754927442967,-392.763289,0.00016438,2]
[378616024,1754927442976,-392.763289,0.00016438,2]
[378616025,1754927442992,-151.0,0.00016438,2]
[378616027,1754927443002,-151.0,0.00016438,2]
[378616029,1754927443011,-151.0,0.00016438,2]
[378616031,1754927443020,-151.0,0.00016438,2]
[378616033,1754927443029,-165.38953503,0.00016438,2]
[378616035,1754927443038,-151.0,0.00016438,2]
[378616037,1754927443047,-151.0,0.00016438,2]
[378616039,1754927443057,-151.0,0.00016438,2]
[378616041,1754927443066,-151.0,0.00016438,2]
[378616043,1754927443075,-31.28876038,0.00016438,2]
[378616106,1754927443649,496.96424638,0.00016,2]
[378616110,1754927443672,4503.03575362,0.00016,2]
[378616158,1754927444128,-119.71123962,0.00016438,2]
[378616160,1754927444138,-151.0,0.00016438,2]
[378616162,1754927444147,-151.0,0.00016438,2]
[378616164,1754927444156,-151.0,0.00016438,2]
[378616166,1754927444166,-201.87783,0.00016438,2]
[378616168,1754927444175,-151.0,0.00016438,2]
[378616170,1754927444184,-151.0,0.00016438,2]
[378616172,1754927444193,-151.0,0.00016438,2]
[378616174,1754927444203,-151.0,0.00016438,2]
[378616176,1754927444212,-151.0,0.00016438,2]
[378616178,1754927444221,-168.231162,0.00016438,2]
[378616180,1754927444232,-151.0,0.00016438,2]
[378616182,1754927444241,-151.0,0.00016438,2]
[378616184,1754927444251,-151.0,0.00016438,2]
[378616186,1754927444259,-151.0,0.00016438,2]
[378616188,1754927444269,-191.607333,0.00016438,2]
[378616190,1754927444278,-111.76042248,0.00016438,2]
[378616193,1754927444291,-95.05270552,0.00016438,2]
[378616195,1754927444300,-331.761919,0.00016438,2]
[378616197,1754927444310,-331.761919,0.00016438,2]
[378616199,1754927444319,-331.761919,0.00016438,2]
[378616201,1754927444328,-400.0,0.00016438,2]
[378616203,1754927444337,-331.761919,0.00016438,2]
[378616205,1754927444347,-331.761919,0.00016438,2]
[378616207,1754927444356,-331.761919,0.00016438,2]
[378616209,1754927444365,-482.04313793,0.00016438,2]
[378616211,1754927444378,-290.46686207,0.00016438,2]
[378616213,1754927444387,-151.0,0.00016438,2]
[378616215,1754927444397,-151.780222,0.00016438,2]
[378616217,1754927444406,-1000.0,0.00016438,2]
[378616219,1754927444415,-458.19,0.00016438,2]
[378616221,1754927444424,-593.12,0.00016438,2]
[378616223,1754927444433,-400.0,0.00016438,2]
[378616225,1754927444442,-458.7,0.00016438,2]
[378616227,1754927444451,-403.18,0.00016438,2]
[378616229,1754927444461,-460.0,0.00016438,2]
[378616231,1754927444470,-472.06647846,0.00016438,2]
[378616233,1754927444480,-527.65,0.00016438,2]
[378616235,1754927444489,-428.63,0.00016438,2]
[378616237,1754927444499,-400.0,0.00016438,2]
[378616238,1754927444508,-400.0,0.00016438,2]
[378616240,1754927444517,-500.0,0.00016438,2]
[378616242,1754927444526,-500.0,0.00016438,2]
[378616244,1754927444535,-500.0,0.00016438,2]
[378616246,1754927444545,-400.0,0.00016438,2]
[378616248,1754927444554,-575.89,0.00016438,2]
[378616250,1754927444564,-739.95,0.00016438,2]
[378616252,1754927444573,-400.0,0.00016438,2]
[378616254,1754927444583,-163.12387121,0.00016438,2]
[378616260,1754927444630,-236.87612879,0.00016438,2]
[378616262,1754927444640,-400.0,0.00016438,2]
[378616264,1754927444649,-400.0,0.00016438,2]
[378616266,1754927444658,-400.0,0.00016438,2]
[378616268,1754927444667,-400.0,0.00016438,2]
[378616270,1754927444677,-400.0,0.00016438,2]
[378616272,1754927444686,-400.0,0.00016438,2]
[378616274,1754927444697,-400.0,0.00016438,2]
[378616276,1754927444709,-400.0,0.00016438,2]
[378616278,1754927444718,-400.0,0.00016438,2]
[378616280,1754927444727,-400.0,0.00016438,2]
[378616282,1754927444739,-400.0,0.00016438,2]
[378616284,1754927444749,-490.29606514,0.00016438,2]
[378616286,1754927444758,-425.55,0.00016438,2]
[378616288,1754927444767,-400.0,0.00016438,2]
[378616290,1754927444777,-400.0,0.00016438,2]
[378616292,1754927444788,-400.0,0.00016438,2]
[378616294,1754927444797,-400.0,0.00016438,2]
[378616296,1754927444806,-400.0,0.00016438,2]
[378616298,1754927444815,-193.1,0.00016438,2]
[378616300,1754927444825,-400.0,0.00016438,2]
[378616302,1754927444834,-400.0,0.00016438,2]
[378616304,1754927444844,-400.0,0.00016438,2]
[378616306,1754927444853,-400.0,0.00016438,2]
[378616308,1754927444862,-400.0,0.00016438,2]
[378616310,1754927444871,-590.65,0.00016438,2]
[378616312,1754927444880,-400.0,0.00016438,2]
[378616314,1754927444890,-400.0,0.00016438,2]
[378616316,1754927444900,-400.0,0.00016438,2]
[378616318,1754927444909,-582.01,0.00016438,2]
[378616320,1754927444918,-400.0,0.00016438,2]
[378616322,1754927444927,-507.16,0.00016438,2]
[378616324,1754927444936,-400.0,0.00016438,2]
[378616326,1754927444945,-400.0,0.00016438,2]
[378616328,1754927444955,-388.64837228,0.00016438,2]
[378616330,1754927444964,-400.0,0.00016438,2]
[378616332,1754927444973,-400.0,0.00016438,2]
[378616334,1754927444983,-400.0,0.00016438,2]
[378616336,1754927444991,-400.0,0.00016438,2]
[378616338,1754927445001,-514.07039838,0.00016438,2]
[378616340,1754927445010,-400.0,0.00016438,2]
[378616342,1754927445019,-2836.62,0.00016438,2]
[378616344,1754927445030,-400.0,0.00016438,2]
[378616346,1754927445039,-533.48,0.00016438,2]
[378616348,1754927445049,-402.2240773,0.00016438,2]
[378616350,1754927445060,-400.0,0.00016438,2]
[378616352,1754927445069,-400.0,0.00016438,2]
[378616354,1754927445078,-400.0,0.00016438,2]
[378616356,1754927445088,-400.0,0.00016438,2]
[378616358,1754927445097,-400.0,0.00016438,2]
[378616360,1754927445107,-400.0,0.00016438,2]
[378616362,1754927445116,-400.0,0.00016438,2]
[378616364,1754927445125,-2012.61,0.00016438,2]
[378616366,1754927445134,-400.0,0.00016438,2]
[378616368,1754927445143,-475.18,0.00016438,2]
[378616370,1754927445153,-495.77,0.00016438,2]
[378616372,1754927445164,-400.0,0.00016438,2]
[378616374,1754927445174,-400.0,0.00016438,2]
[378616376,1754927445183,-400.0,0.00016438,2]
[378616378,1754927445192,-400.0,0.00016438,2]
[378616380,1754927445202,-490.82,0.00016438,2]
[378616382,1754927445211,-400.0,0.00016438,2]
[378616384,1754927445221,-400.0,0.00016438,2]
[378616386,1754927445230,-1030.793349,0.00016438,2]
[378616388,1754927445240,-639.54,0.00016438,2]
[378616390,1754927445249,-1030.793349,0.00016438,2]
[378616392,1754927445258,-1030.793349,0.00016438,2]
[378616394,1754927445268,-400.0,0.00016438,2]
[378616396,1754927445277,-400.0,0.00016438,2]
[378616398,1754927445286,-400.0,0.00016438,2]
[378616399,1754927445295,-1030.793349,0.00016438,2]
[378616401,1754927445304,-1030.793349,0.00016438,2]
[378616403,1754927445314,-1030.793349,0.00016438,2]
[378616405,1754927445323,-400.0,0.00016438,2]
[378616407,1754927445332,-400.0,0.00016438,2]
[378616409,1754927445342,-474.73,0.00016438,2]
[378616411,1754927445351,-400.0,0.00016438,2]
[378616413,1754927445361,-400.0,0.00016438,2]
[378616415,1754927445370,-400.0,0.00016438,2]
[378616417,1754927445379,-400.0,0.00016438,2]
[378616419,1754927445388,-400.0,0.00016438,2]
[378616421,1754927445398,-400.0,0.00016438,2]
[378616423,1754927445407,-405.21,0.00016438,2]
[378616425,1754927445417,-400.0,0.00016438,2]
[378616427,1754927445426,-400.0,0.00016438,2]
[378616429,1754927445436,-646.59,0.00016438,2]
[378616431,1754927445445,-460.0,0.00016438,2]
[378616433,1754927445454,-516.88,0.00016438,2]
[378616435,1754927445464,-400.0,0.00016438,2]
[378616437,1754927445473,-400.0,0.00016438,2]
[378616439,1754927445484,-400.0,0.00016438,2]
[378616441,1754927445493,-400.0,0.00016438,2]
[378616443,1754927445503,-400.0,0.00016438,2]
[378616445,1754927445513,-691.08,0.00016438,2]
[378616448,1754927445522,-227.92074267,0.00016438,2]
[378616451,1754927445531,-151.0,0.00016438,2]
[378616453,1754927445541,-402.46,0.00016438,2]
[378616455,1754927445551,-400.0,0.00016438,2]
[378616457,1754927445560,-151.0,0.00016438,2]
[378616459,1754927445569,-151.0,0.00016438,2]
[378616461,1754927445579,-400.0,0.00016438,2]
[378616463,1754927445588,-400.0,0.00016438,2]
[378616465,1754927445598,-557.47,0.00016438,2]
[378616467,1754927445607,-400.0,0.00016438,2]
[378616469,1754927445617,-1426.207205,0.00016438,2]
[378616471,1754927445626,-404.79,0.00016438,2]
[378616473,1754927445636,-151.0,0.00016438,2]
[378616475,1754927445645,-151.0,0.00016438,2]
[378616477,1754927445656,-151.0,0.00016438,2]
[378616479,1754927445665,-400.0,0.00016438,2]
[378616480,1754927445676,-400.0,0.00016438,2]
[378616483,1754927445686,-400.0,0.00016438,2]
[378616485,1754927445695,-929.14,0.00016438,2]
[378616486,1754927445706,-400.0,0.00016438,2]
[378616488,1754927445717,-400.0,0.00016438,2]
[378616490,1754927445727,-449.77,0.00016438,2]
[378616492,1754927445737,-400.0,0.00016438,2]
[378616494,1754927445747,-400.0,0.00016438,2]
[378616496,1754927445756,-400.0,0.00016438,2]
[378616498,1754927445766,-400.0,0.00016438,2]
[378616500,1754927445776,-157.590856,0.00016438,2]
[378616502,1754927445787,-400.0,0.00016438,2]
[378616504,1754927445796,-447.15,0.00016438,2]
[378616506,1754927445806,-500.0,0.00016438,2]
[378616508,1754927445815,-158.164585,0.00016438,2]
[378616510,1754927445825,-400.0,0.00016438,2]
[378616512,1754927445834,-447.15,0.00016438,2]
[378616514,1754927445843,-538.1,0.00016438,2]
[378616516,1754927445853,-400.0,0.00016438,2]
[378616518,1754927445864,-289.493879,0.00016438,2]
[378616520,1754927445874,-675.16,0.00016438,2]
[378616522,1754927445884,-400.0,0.00016438,2]
[378616524,1754927445893,-1295.558569,0.00016438,2]
[378616526,1754927445903,-774.222254,0.00016438,2]
[378616528,1754927445912,-400.0,0.00016438,2]
[378616530,1754927445921,-400.0,0.00016438,2]
[378616532,1754927445931,-934.32,0.00016438,2]
[378616534,1754927445941,-400.0,0.00016438,2]
[378616536,1754927445950,-400.0,0.00016438,2]
[378616538,1754927445959,-407.61615852,0.00016438,2]
[378616540,1754927445969,-213.8558655,0.00016438,2]
[378616542,1754927445978,-400.0,0.00016438,2]
[378616544,1754927445991,-400.0,0.00016438,2]
[378616546,1754927446001,-400.0,0.00016438,2]
[378616548,1754927446011,-400.0,0.00016438,2]
[378616550,1754927446021,-400.0,0.00016438,2]
[378616552,1754927446031,-6611.29,0.00016438,2]
[378616553,1754927446041,-400.0,0.00016438,2]
[378616555,1754927446050,-307.28864887,0.00016438,2]
[378616557,1754927446060,-516.96,0.00016438,2]
[378616559,1754927446069,-541.31,0.00016438,2]
[378616561,1754927446079,-400.0,0.00016438,2]
[378616563,1754927446089,-400.0,0.00016438,2]
[378616565,1754927446099,-400.0,0.00016438,2]
[378616567,1754927446108,-400.0,0.00016438,2]
[378616569,1754927446118,-400.0,0.00016438,2]
[378616571,1754927446127,-400.0,0.00016438,2]
[378616573,1754927446137,-519.42,0.00016438,2]
[378616575,1754927446147,-400.0,0.00016438,2]
[378616577,1754927446156,-400.0,0.00016438,2]
[378616579,1754927446165,-1033.89,0.00016438,2]
[378616581,1754927446174,-400.0,0.00016438,2]
[378616583,1754927446183,-400.0,0.00016438,2]
[378616585,1754927446193,-400.0,0.00016438,2]
[378616587,1754927446202,-979.55,0.00016438,2]
[378616589,1754927446211,-400.0,0.00016438,2]
[378616591,1754927446220,-1412.69,0.00016438,2]
[378616593,1754927446230,-426.64,0.00016438,2]
[378616595,1754927446243,-444.78,0.00016438,2]
[378616597,1754927446252,-400.0,0.00016438,2]
[378616599,1754927446262,-400.0,0.00016438,2]
[378616601,1754927446271,-400.0,0.00016438,2]
[378616603,1754927446280,-513.92,0.00016438,2]
[378616605,1754927446290,-629.67,0.00016438,2]
[378616607,1754927446299,-400.0,0.00016438,2]
[378616609,1754927446309,-534.41,0.00016438,2]
[378616610,1754927446319,-400.0,0.00016438,2]
[378616612,1754927446328,-400.0,0.00016438,2]
[378616614,1754927446338,-400.0,0.00016438,2]
[378616616,1754927446348,-400.0,0.00016438,2]
[378616618,1754927446357,-489.37,0.00016438,2]
[378616620,1754927446367,-572.58,0.00016438,2]
[378616622,1754927446377,-400.0,0.00016438,2]
[378616624,1754927446387,-151.0,0.00016438,2]
[378616626,1754927446397,-825.21,0.00016438,2]
[378616628,1754927446406,-151.0,0.00016438,2]
[378616630,1754927446416,-151.0,0.00016438,2]
[378616632,1754927446425,-151.0,0.00016438,2]
[378616634,1754927446435,-400.0,0.00016438,2]
[378616636,1754927446444,-400.0,0.00016438,2]
[378616638,1754927446454,-920.22,0.00016438,2]
[378616640,1754927446465,-400.0,0.00016438,2]
[378616641,1754927446475,-400.0,0.00016438,2]
[378616642,1754927446484,-400.0,0.00016438,2]
[378616643,1754927446494,-400.0,0.00016438,2]
[378616644,1754927446504,-400.0,0.00016438,2]
[378616645,1754927446513,-1659.62,0.00016438,2]
[378616646,1754927446522,-694.844878,0.00016438,2]
[378616647,1754927446531,-694.844878,0.00016438,2]
[378616648,1754927446541,-562.28,0.00016438,2]
[378616649,1754927446551,-857.84,0.00016438,2]
[378616650,1754927446560,-2076.51,0.00016438,2]
[378616651,1754927446569,-694.844878,0.00016438,2]
[378616652,1754927446579,-694.844878,0.00016438,2]
[378616653,1754927446588,-400.0,0.00016438,2]
[378616654,1754927446598,-400.0,0.00016438,2]
[378616655,1754927446607,-400.0,0.00016438,2]
[378616656,1754927446617,-2141.12,0.00016438,2]